[Event "17th Aeroflot Open-A 2019"]
[Site "Moscow"]
[Date "2019.02.20"]
[Round "1.13"]
[White "Aryan Chopra"]
[Black "Sjugirov, Sanan"]
[Result "1/2-1/2"]
[ECO "B12"]
[WhiteElo "2540"]
[BlackElo "2663"]
[Annotator "RC"]
[PlyCount "79"]
[EventDate "2019.02.19"]
[EventCountry "RUS"]
[SourceTitle "playchess.com"]
[Source "ChessBase"]
[SourceQuality "1"]
[TimeControl "40/5400+30:1800+30"]

1. e4 {[%emt 0:00:00]} c6 {[%emt 0:04:01]} 2. d4 {[%emt 0:00:00]} d5 {[%emt 0:00:05]} 3. e5 {[%emt 0:00:00]} Bf5 {[%emt 0:00:08]} 4. h4 {[%emt 0:00:00]} h5 {[%emt 0:00:34]} 5. Bd3 {[%emt 0:00:10]} Bxd3 {[%emt 0:00:18]} 6. Qxd3 {[%emt 0:00:05]} Qa5+ {[%emt 0:00:16]} 7. Nd2 {[%emt 0:00:13]} e6 {[%emt 0:00:31]} 8. Ngf3 {[%emt 0:00:22]} Ne7 {[%emt 0:00:53]} 9. O-O {[%emt 0:00:45]} Nf5 {[%emt 0:00:36]} 10. Nb3 {[%emt 0:00:53]} Qa6 {[%emt 0:06:31]} 11. Qd1 {[%emt 0:00:15]} c5 {[%emt 0:11:59]} 12. dxc5 {[%emt 0:03:49]} Nd7 {[%emt 0:02:17]} 13. c3 {[%emt 0:10:32]} Bxc5 {[%emt 0:14:32]} 14. Bg5 {[%emt 0:06:01]} Qa4 {[%emt 0:08:05]} 15. Rc1 {[%emt 0:20:46]} Rc8 {[%emt 0:02:23]} 16. Nbd4 {[%emt 0:04:28]} Qxd1 {[%emt 0:01:20]} 17. Rfxd1 {[%emt 0:00:05]} Bxd4 {[%emt 0:02:50]} 18. Nxd4 {[%emt 0:05:22]} g6 {[%emt 0:04:37]} 19. c4 {[%emt 0:20:01]} dxc4 {[%emt 0:10:38]} 20. Nb5 {[%emt 0:01:39]} a6 {[%emt 0:10:15]} 21. Nd6+ {[%emt 0:02:09]} Nxd6 {[%emt 0:00:10]} 22. Rxd6 {[%emt 0:00:06]} Nb8 {[%emt 0:03:01]} 23. Rxc4 {[%emt 0:01:37]} O-O {[%emt 0:03:47]} 24. Rb4 {[%emt 0:06:10]} b5 {[%emt 0:00:22]} 25. a4 {[%emt 0:04:44]} Rc5 {[%emt 0:02:24]} 26. axb5 {[%emt 0:06:40]} axb5 {[%emt 0:00:09]} 27. Rb6 {[%emt 0:00:38]} Rxe5 {[%emt 0:00:20]} 28. R4xb5 {[%emt 0:00:04]} Re1+ {[%emt 0:00:45]} 29. Kh2 {[%emt 0:00:01]} Nd7 {[%emt 0:00:14]} 30. Rb7 {[%emt 0:01:07]} Ne5 {[%emt 0:01:06]} 31. f3 {[%emt 0:01:02]} Re2 {[%emt 0:01:47]} 32. Kg3 {[%emt 0:01:36]} f6 {[%emt 0:00:31]} 33. Bh6 {[%emt 0:02:52]} Rf7 {[%emt 0:00:11]} 34. b4 {[%emt 0:00:05]} Rxb7 {[%emt 0:01:15]} 35. Rxb7 {[%emt 0:00:02]} Nf7 {[%emt 0:00:11]} 36. Rb8+ {[%emt 0:01:00]} Kh7 {[%emt 0:00:05]} 37. Rb7 {[%emt 0:00:11]} Kxh6 {[%emt 0:03:30]} 38. Rxf7 {[%emt 0:00:04]} f5 {[%emt 0:00:27]} 39. b5 {[%emt 0:00:59]} Rb2 {[%emt 0:00:21]} 40. Re7 {[%emt 0:00:00]} 1/2-1/2

[Event "17th Aeroflot Open-A 2019"]
[Site "Moscow"]
[Date "2019.02.20"]
[Round "1.14"]
[White "Sethuraman, S.P."]
[Black "Ghaem Maghami, Ehsan"]
[Result "1/2-1/2"]
[ECO "B48"]
[WhiteElo "2651"]
[BlackElo "2540"]
[Annotator "RC"]
[PlyCount "116"]
[EventDate "2019.02.19"]
[EventCountry "RUS"]
[SourceTitle "playchess.com"]
[Source "ChessBase"]
[SourceQuality "1"]
[TimeControl "40/5400+30:1800+30"]

1. e4 {[%emt 0:00:00]} c5 {[%emt 0:00:00]} 2. Nf3 {[%emt 0:00:00]} e6 {[%emt 0:00:00]} 3. d4 {[%emt 0:00:00]} cxd4 {[%emt 0:00:00]} 4. Nxd4 {[%emt 0:00:04]} Nc6 {[%emt 0:00:00]} 5. Nc3 {[%emt 0:00:05]} Qc7 {[%emt 0:00:02]} 6. Be3 {[%emt 0:00:39]} a6 {[%emt 0:01:13]} 7. a3 {[%emt 0:03:26]} b5 {[%emt 0:06:28]} 8. Nxc6 {[%emt 0:00:46]} Qxc6 {[%emt 0:04:47]} 9. Be2 {[%emt 0:00:09]} Bb7 {[%emt 0:04:05]} 10. Qd2 {[%emt 0:01:27]} Rc8 {[%emt 0:21:07]} 11. f3 {[%emt 0:29:54]} Nf6 {[%emt 0:03:35]} 12. Bd4 {[%emt 0:10:36]} Qc7 {[%emt 0:15:25]} 13. Qg5 {[%emt 0:13:55]} h6 {[%emt 0:04:24]} 14. Qg3 {[%emt 0:00:13]} Qxg3+ {[%emt 0:01:16]} 15. hxg3 {[%emt 0:00:05]} Bc5 {[%emt 0:00:14]} 16. O-O-O {[%emt 0:01:42]} Ke7 {[%emt 0:04:01]} 17. Kb1 {[%emt 0:04:18]} Rhd8 {[%emt 0:05:49]} 18. a4 {[%emt 0:07:31]} b4 {[%emt 0:06:37]} 19. Bxc5+ {[%emt 0:00:20]} Rxc5 {[%emt 0:00:08]} 20. Na2 {[%emt 0:00:02]} a5 {[%emt 0:05:41]} 21. Nc1 {[%emt 0:00:56]} Rc7 {[%emt 0:00:52]} 22. Bb5 {[%emt 0:05:47]} d5 {[%emt 0:03:37]} 23. e5 {[%emt 0:02:51]} Nd7 {[%emt 0:00:31]} 24. Nb3 {[%emt 0:03:12]} Nxe5 {[%emt 0:10:28]} 25. Nxa5 {[%emt 0:00:14]} Rb8 {[%emt 0:00:20]} 26. Rh4 {[%emt 0:06:36]} Bc6 {[%emt 0:01:23]} 27. Rxb4 {[%emt 0:03:03]} Bxb5 {[%emt 0:00:15]} 28. axb5 {[%emt 0:03:24]} Rc5 {[%emt 0:00:24]} 29. c3 {[%emt 0:01:06]} Rbxb5 {[%emt 0:00:14]} 30. Rxb5 {[%emt 0:00:05]} Rxb5 {[%emt 0:00:10]} 31. b4 {[%emt 0:00:06]} Rb6 {[%emt 0:00:39]} 32. Kc2 {[%emt 0:00:43]} Ra6 {[%emt 0:01:40]} 33. Kb3 {[%emt 0:01:09]} h5 {[%emt 0:00:19]} 34. Ka4 {[%emt 0:01:23]} Ra8 {[%emt 0:00:23]} 35. Kb3 {[%emt 0:00:30]} Ra6 {[%emt 0:00:36]} 36. Rd2 {[%emt 0:00:28]} Ra8 {[%emt 0:00:39]} 37. f4 {[%emt 0:00:32]} Nd7 {[%emt 0:00:17]} 38. c4 {[%emt 0:00:32]} dxc4+ {[%emt 0:00:25]} 39. Nxc4 {[%emt 0:00:51]} Rb8 {[%emt 0:00:25]} 40. Na5 {[%emt 0:00:00]} Rb6 {[%emt 0:00:00]} 41. Rc2 {[%emt 0:02:27]} e5 {[%emt 0:07:42]} 42. f5 {[%emt 0:02:20]} e4 {[%emt 0:02:20]} 43. Nc4 {[%emt 0:05:08]} Rb5 {[%emt 0:09:19]} 44. Ne3 {[%emt 0:00:34]} Re5 {[%emt 0:00:20]} 45. Rc7 {[%emt 0:03:35]} Kd8 {[%emt 0:01:53]} 46. Ra7 {[%emt 0:01:55]} g6 {[%emt 0:02:59]} 47. Kc4 {[%emt 0:02:42]} gxf5 {[%emt 0:01:13]} 48. b5 {[%emt 0:12:39]} Kc8 {[%emt 0:06:55]} 49. Kb4 {[%emt 0:01:58]} h4 {[%emt 0:00:35]} 50. gxh4 {[%emt 0:00:04]} f4 {[%emt 0:00:00]} 51. Nc4 {[%emt 0:00:06]} Re6 {[%emt 0:00:23]} 52. Ra1 {[%emt 0:00:44]} e3 {[%emt 0:02:44]} 53. Kc3 {[%emt 0:00:25]} Ne5 {[%emt 0:00:52]} 54. Nxe5 {[%emt 0:02:49]} Rxe5 {[%emt 0:00:02]} 55. Rf1 {[%emt 0:00:21]} Rxb5 {[%emt 0:01:09]} 56. Rxf4 {[%emt 0:00:19]} Re5 {[%emt 0:00:05]} 57. Rf1 {[%emt 0:00:09]} Re4 {[%emt 0:00:26]} 58. Kd3 {[%emt 0:00:20]} Rxh4 {[%emt 0:00:05] Ke4} 1/2-1/2

[Event "17th Aeroflot Open-A 2019"]
[Site "Moscow"]
[Date "2019.02.19"]
[Round "1.15"]
[White "Puranik, Abhimanyu"]
[Black "Anton Guijarro, David"]
[Result "*"]
[ECO "B30"]
[WhiteElo "2538"]
[BlackElo "2642"]
[Annotator "RC"]
[PlyCount "23"]
[EventDate "2019.02.19"]
[EventCountry "RUS"]
[SourceTitle "playchess.com"]
[Source "ChessBase"]
[SourceQuality "1"]
[TimeControl "40/5400+30:1800+30"]

1. e4 {[%emt 0:00:00]} c5 {[%emt 0:00:00]} 2. Nf3 {[%emt 0:00:00]} Nc6 {[%emt 0:00:00]} 3. d4 {[%emt 0:00:00]} cxd4 {[%emt 0:00:00]} 4. Nxd4 {[%emt 0:00:00]} Nf6 {[%emt 0:00:00]} 5. Nc3 {[%emt 0:00:00]} d6 {[%emt 0:00:00]} 6. Bg5 {[%emt 0:00:00]} e6 {[%emt 0:00:00]} 7. Qd2 {[%emt 0:00:00]} a6 {[%emt 0:00:00]} 8. O-O-O {[%emt 0:00:00]} Bd7 {[%emt 0:00:00]} 9. f3 {[%emt 0:00:00]} Nxd4 {[%emt 0:00:00]} 10. Qxd4 {[%emt 0:00:00]} h6 {[%emt 0:00:00]} 11. Bh4 {[%emt 0:03:12]} Be7 {[%emt 0:02:57]} 12. f4 {[%emt 0:09:59]} *

[Event "17th Aeroflot Open-A 2019"]
[Site "Moscow"]
[Date "2019.02.19"]
[Round "1.16"]
[White "Zvjaginsev, Vadim"]
[Black "Stupak, Kirill"]
[Result "*"]
[WhiteElo "2642"]
[BlackElo "2537"]
[Annotator "ChessBase"]
[PlyCount "21"]
[EventDate "2019.02.19"]
[EventCountry "RUS"]
[SourceTitle "playchess.com"]
[Source "ChessBase"]
[SourceQuality "1"]
[TimeControl "40/5400+30:1800+30"]

1. e4 {[%emt 0:00:00]} e6 {[%emt 0:00:00]} 2. d3 {[%emt 0:00:00]} d5 {[%emt 0:00:00]} 3. Nd2 {[%emt 0:00:00]} c5 {[%emt 0:00:00]} 4. Ngf3 {[%emt 0:00:00]} Nc6 {[%emt 0:00:00]} 5. g3 {[%emt 0:00:00]} Nf6 {[%emt 0:00:00]} 6. Bg2 {[%emt 0:00:00]} g6 {[%emt 0:00:00]} 7. exd5 {[%emt 0:03:02]} Nxd5 {[%emt 0:00:00]} 8. h4 {[%emt 0:01:17]} h6 {[%emt 0:00:00]} 9. O-O {[%emt 0:04:35]} Bg7 {[%emt 0:00:00]} 10. Nb3 {[%emt 0:00:59]} b6 {[%emt 0:01:49]} 11. c3 {[%emt 0:04:47]} *

[Event "17th Aeroflot Open-A 2019"]
[Site "Moscow"]
[Date "2019.02.20"]
[Round "1.16"]
[White "Zvjaginsev, Vadim"]
[Black "Stupak, Kirill"]
[Result "1/2-1/2"]
[ECO "C00"]
[WhiteElo "2642"]
[BlackElo "2537"]
[Annotator "RC"]
[PlyCount "55"]
[EventDate "2019.02.19"]
[EventCountry "RUS"]
[SourceTitle "playchess.com"]
[Source "ChessBase"]
[SourceQuality "1"]
[TimeControl "40/5400+30:1800+30"]

1. e4 {[%emt 0:00:00]} e6 {[%emt 0:00:00]} 2. c3 {[%emt 0:00:00]} d5 {[%emt 0:02:07]} 3. e5 {[%emt 0:00:05]} c5 {[%emt 0:00:05]} 4. f4 {[%emt 0:00:15]} Nc6 {[%emt 0:00:15]} 5. Nf3 {[%emt 0:00:07]} Nh6 {[%emt 0:06:58]} 6. Na3 {[%emt 0:00:17]} Nf5 {[%emt 0:04:43]} 7. Nc2 {[%emt 0:05:02]} Bd7 {[%emt 0:07:12]} 8. d4 {[%emt 0:04:42]} cxd4 {[%emt 0:05:44]} 9. cxd4 {[%emt 0:00:25]} Nb4 {[%emt 0:09:42]} 10. Nxb4 {[%emt 0:08:07]} Bxb4+ {[%emt 0:00:03]} 11. Kf2 {[%emt 0:00:14]} Be7 {[%emt 0:08:48]} 12. Bd3 {[%emt 0:08:08]} Qb6 {[%emt 0:03:48]} 13. Qb3 {[%emt 0:07:53]} Qxb3 {[%emt 0:13:06]} 14. axb3 {[%emt 0:00:43]} Bb4 {[%emt 0:00:09]} 15. Bxf5 {[%emt 0:03:23]} exf5 {[%emt 0:00:12]} 16. Bd2 {[%emt 0:00:07]} Be7 {[%emt 0:07:45]} 17. Rhc1 {[%emt 0:11:37]} Bb5 {[%emt 0:05:28]} 18. Ba5 {[%emt 0:02:45]} Ba6 {[%emt 0:10:05]} 19. Rc7 {[%emt 0:14:18]} Bd8 {[%emt 0:02:07]} 20. Rc3 {[%emt 0:01:00]} Be7 {[%emt 0:00:15]} 21. Rc7 {[%emt 0:01:38]} Bd8 {[%emt 0:00:03]} 22. Rc2 {[%emt 0:00:23]} Be7 {[%emt 0:00:21]} 23. Ke3 {[%emt 0:04:26]} h6 {[%emt 0:06:16]} 24. Rc7 {[%emt 0:04:20]} Bd8 {[%emt 0:00:05]} 25. Rc3 {[%emt 0:00:36]} Be7 {[%emt 0:00:04]} 26. Rc7 {[%emt 0:02:01]} Bd8 {[%emt 0:00:02]} 27. Rc2 {[%emt 0:01:26]} Be7 {[%emt 0:00:02]} 28. Rc7 {[%emt 0:10:24]} 1/2-1/2

[Event "17th Aeroflot Open-A 2019"]
[Site "Moscow"]
[Date "2019.02.19"]
[Round "1.18"]
[White "Ganguly, Surya Shekhar"]
[Black "Praggnanandhaa R"]
[Result "*"]
[ECO "B20"]
[WhiteElo "2636"]
[BlackElo "2532"]
[Annotator "RC"]
[PlyCount "29"]
[EventDate "2019.02.19"]
[EventCountry "RUS"]
[SourceTitle "playchess.com"]
[Source "ChessBase"]
[SourceQuality "1"]
[TimeControl "40/5400+30:1800+30"]

1. e4 {[%emt 0:00:00]} c5 {[%emt 0:00:00]} 2. Nf3 {[%emt 0:00:00]} Nc6 {[%emt 0:00:00]} 3. Nc3 {[%emt 0:00:00]} d6 {[%emt 0:00:00]} 4. d4 {[%emt 0:00:00]} cxd4 {[%emt 0:00:00]} 5. Nxd4 {[%emt 0:00:00]} Nf6 {[%emt 0:00:00]} 6. g3 {[%emt 0:00:00]} g6 {[%emt 0:00:00]} 7. Nxc6 {[%emt 0:00:00]} bxc6 {[%emt 0:00:00]} 8. Bg2 {[%emt 0:00:00]} Bg7 {[%emt 0:00:00]} 9. e5 {[%emt 0:05:03]} dxe5 {[%emt 0:00:00]} 10. Qxd8+ {[%emt 0:00:49]} Kxd8 {[%emt 0:00:00]} 11. Bxc6 {[%emt 0:00:09]} Rb8 {[%emt 0:00:00]} 12. Be3 {[%emt 0:02:21]} Bb7 {[%emt 0:00:46]} 13. O-O-O+ {[%emt 0:01:34]} Kc8 {[%emt 0:01:07]} 14. Bxb7+ {[%emt 0:02:17]} Rxb7 {[%emt 0:03:30]} 15. f3 {[%emt 0:02:15]} *

[Event "17th Aeroflot Open-A 2019"]
[Site "Moscow"]
[Date "2019.02.20"]
[Round "1.19"]
[White "Pourramezanali, Amirreza"]
[Black "Alekseenko, Kirill"]
[Result "0-1"]
[ECO "C54"]
[WhiteElo "2529"]
[BlackElo "2634"]
[Annotator "RC"]
[PlyCount "54"]
[EventDate "2019.02.19"]
[EventCountry "RUS"]
[SourceTitle "playchess.com"]
[Source "ChessBase"]
[SourceQuality "1"]
[TimeControl "40/5400+30:1800+30"]

1. e4 {[%emt 0:00:00]} e5 {[%emt 0:00:00]} 2. Nf3 {[%emt 0:00:00]} Nc6 {[%emt 0:00:14]} 3. Bc4 {[%emt 0:00:00]} Bc5 {[%emt 0:00:30]} 4. c3 {[%emt 0:00:00]} Nf6 {[%emt 0:00:25]} 5. d3 {[%emt 0:00:00]} d6 {[%emt 0:00:24]} 6. O-O {[%emt 0:00:14]} O-O {[%emt 0:00:27]} 7. Nbd2 {[%emt 0:00:11]} a5 {[%emt 0:00:23]} 8. a4 {[%emt 0:00:06]} Ne7 {[%emt 0:01:43]} 9. Re1 {[%emt 0:00:55]} Ng6 {[%emt 0:01:19]} 10. Nf1 {[%emt 0:00:27]} c6 {[%emt 0:00:41]} 11. Ng3 {[%emt 0:08:05]} d5 {[%emt 0:00:15]} 12. exd5 {[%emt 0:13:40]} cxd5 {[%emt 0:00:06]} 13. Ba2 {[%emt 0:00:56]} Bd6 {[%emt 0:01:31]} 14. Bg5 {[%emt 0:02:21]} Be6 {[%emt 0:00:15]} 15. Nh4 {[%emt 0:15:24]} Qd7 {[%emt 0:22:26]} 16. Bxf6 {[%emt 0:12:38]} gxf6 {[%emt 0:00:19]} 17. Qh5 {[%emt 0:00:38]} Kh8 {[%emt 0:00:32]} 18. Nhf5 {[%emt 0:00:38]} Rg8 {[%emt 0:02:34]} 19. Nxd6 {[%emt 0:01:01]} Qxd6 {[%emt 0:00:14]} 20. Qh6 {[%emt 0:02:21]} Rac8 {[%emt 0:16:19]} 21. Nh5 {[%emt 0:05:22]} Bg4 {[%emt 0:02:14]} 22. g3 {[%emt 0:06:07]} Rc6 {[%emt 0:07:14]} 23. Bb3 {[%emt 0:01:01]} Nh4 {[%emt 0:06:06]} 24. Bd1 {[%emt 0:02:12]} Nf3+ {[%emt 0:02:58]} 25. Bxf3 {[%emt 0:01:44]} Bxf3 {[%emt 0:00:05]} 26. d4 {[%emt 0:01:19]} Rg6 {[%emt 0:01:24]} 27. dxe5 {[%emt 0:00:13]} fxe5 {[%emt 0:00:18]} 0-1

[Event "17th Aeroflot Open-A 2019"]
[Site "Moscow"]
[Date "2019.02.20"]
[Round "1.20"]
[White "Indjic, Aleksandar"]
[Black "Lobanov, Sergei"]
[Result "1-0"]
[ECO "E32"]
[WhiteElo "2630"]
[BlackElo "2526"]
[Annotator "RC"]
[PlyCount "67"]
[EventDate "2019.02.19"]
[EventCountry "RUS"]
[SourceTitle "playchess.com"]
[Source "ChessBase"]
[SourceQuality "1"]
[TimeControl "40/5400+30:1800+30"]

1. d4 {[%emt 0:00:39]} Nf6 {[%emt 0:00:00]} 2. c4 {[%emt 0:00:17]} e6 {[%emt 0:00:05]} 3. Nc3 {[%emt 0:00:44]} Bb4 {[%emt 0:00:08]} 4. Qc2 {[%emt 0:01:04]} O-O {[%emt 0:00:38]} 5. Nf3 {[%emt 0:00:28]} c5 {[%emt 0:01:19]} 6. dxc5 {[%emt 0:01:13]} Na6 {[%emt 0:00:33]} 7. g3 {[%emt 0:00:33]} Nxc5 {[%emt 0:01:01]} 8. Bg2 {[%emt 0:00:10]} Nce4 {[%emt 0:00:32]} 9. O-O {[%emt 0:00:34]} Nxc3 {[%emt 0:00:24]} 10. bxc3 {[%emt 0:00:15]} Be7 {[%emt 0:02:00]} 11. e4 {[%emt 0:00:25]} d6 {[%emt 0:00:22]} 12. e5 {[%emt 0:00:41]} dxe5 {[%emt 0:00:29]} 13. Nxe5 {[%emt 0:00:12]} Qc7 {[%emt 0:00:12]} 14. Qe2 {[%emt 0:00:54]} Bd6 {[%emt 0:01:13]} 15. Bf4 {[%emt 0:02:15]} Ne8 {[%emt 0:00:31]} 16. c5 {[%emt 0:11:33]} Qxc5 {[%emt 0:00:15]} 17. c4 {[%emt 0:02:50]} Qc7 {[%emt 0:41:02]} 18. c5 {[%emt 0:06:33]} Qxc5 {[%emt 0:11:35]} 19. Rac1 {[%emt 0:00:29]} Qa5 {[%emt 0:01:09]} 20. Rfd1 {[%emt 0:00:48]} Be7 {[%emt 0:04:25]} 21. h4 {[%emt 0:04:41]} Nf6 {[%emt 0:03:05]} 22. h5 {[%emt 0:06:43]} Nd5 {[%emt 0:03:20]} 23. h6 {[%emt 0:24:49]} Nxf4 {[%emt 0:05:31]} 24. gxf4 {[%emt 0:01:49]} g6 {[%emt 0:02:28]} 25. Bh3 {[%emt 0:09:30]} Bf6 {[%emt 0:06:31]} 26. Rd3 {[%emt 0:08:32]} b6 {[%emt 0:04:50]} 27. Qe3 {[%emt 0:02:08]} Bb7 {[%emt 0:07:56]} 28. Nd7 {[%emt 0:02:51]} Bb2 {[%emt 0:00:20]} 29. Rc7 {[%emt 0:03:40]} Ba6 {[%emt 0:01:22]} 30. Nxf8 {[%emt 0:02:28]} Bxd3 {[%emt 0:00:29]} 31. Nxe6 {[%emt 0:00:13]} Bf5 {[%emt 0:01:08]} 32. Ng5 {[%emt 0:00:36]} Rf8 {[%emt 0:00:30]} 33. Rxf7 {[%emt 0:01:09]} Bf6 {[%emt 0:00:35]} 34. Rxf6 {[%emt 0:00:45]} 1-0

[Event "17th Aeroflot Open-A 2019"]
[Site "Moscow"]
[Date "2019.02.19"]
[Round "1.27"]
[White "Liu, Yan"]
[Black "Van Foreest, Jorden"]
[Result "*"]
[ECO "A06"]
[WhiteElo "2498"]
[BlackElo "2618"]
[Annotator "ChessBase"]
[PlyCount "22"]
[EventDate "2019.02.19"]
[EventCountry "RUS"]
[SourceTitle "playchess.com"]
[Source "ChessBase"]
[SourceQuality "1"]
[TimeControl "40/5400+30:1800+30"]

1. Nf3 {[%emt 0:00:00]} d5 {[%emt 0:00:00]} 2. e3 {[%emt 0:00:00]} Nf6 {[%emt 0:00:00]} 3. c4 {[%emt 0:00:00]} e6 {[%emt 0:00:00]} 4. b3 {[%emt 0:00:00]} c5 {[%emt 0:00:00]} 5. Bb2 {[%emt 0:00:00]} Nc6 {[%emt 0:00:00]} 6. cxd5 {[%emt 0:00:00]} exd5 {[%emt 0:00:00]} 7. Be2 {[%emt 0:03:30]} d4 {[%emt 0:00:00]} 8. Bb5 {[%emt 0:02:27]} Bd6 {[%emt 0:00:00]} 9. Bxc6+ {[%emt 0:04:30]} bxc6 {[%emt 0:00:00]} 10. Na3 {[%emt 0:00:44]} O-O {[%emt 0:00:00]} 11. Nc4 {[%emt 0:04:45]} Re8 {[%emt 0:01:49]} *

[Event "17th Aeroflot Open-A 2019"]
[Site "Moscow"]
[Date "2019.02.19"]
[Round "1.28"]
[White "Martirosyan, Haik M."]
[Black "Gagare, Shardul"]
[Result "*"]
[ECO "A40"]
[WhiteElo "2616"]
[BlackElo "2495"]
[Annotator "RC"]
[PlyCount "22"]
[EventDate "2019.02.19"]
[EventCountry "RUS"]
[SourceTitle "playchess.com"]
[Source "ChessBase"]
[SourceQuality "1"]
[TimeControl "40/5400+30:1800+30"]

1. d4 {[%emt 0:00:00]} Nf6 {[%emt 0:00:00]} 2. Nf3 {[%emt 0:00:00]} d5 {[%emt 0:00:00]} 3. c4 {[%emt 0:00:00]} e6 {[%emt 0:00:00]} 4. Nc3 {[%emt 0:00:00]} Be7 {[%emt 0:00:00]} 5. Bg5 {[%emt 0:00:00]} h6 {[%emt 0:00:00]} 6. Bxf6 {[%emt 0:00:00]} Bxf6 {[%emt 0:00:00]} 7. Rc1 {[%emt 0:00:00]} O-O {[%emt 0:00:00]} 8. e3 {[%emt 0:00:00]} c6 {[%emt 0:00:00]} 9. Bd3 {[%emt 0:00:00]} Nd7 {[%emt 0:00:00]} 10. O-O {[%emt 0:03:47]} a6 {[%emt 0:00:00]} 11. b3 {[%emt 0:17:14]} b5 {[%emt 0:00:56]} *

[Event "17th Aeroflot Open-A 2019"]
[Site "Moscow"]
[Date "2019.02.20"]
[Round "1.29"]
[White "Karthik Venkataraman"]
[Black "Zhou, Jianchao"]
[Result "0-1"]
[ECO "A06"]
[WhiteElo "2494"]
[BlackElo "2615"]
[Annotator "RC"]
[PlyCount "80"]
[EventDate "2019.02.19"]
[EventCountry "RUS"]
[SourceTitle "playchess.com"]
[Source "ChessBase"]
[SourceQuality "1"]
[TimeControl "40/5400+30:1800+30"]

1. Nf3 {[%emt 0:00:00]} d5 {[%emt 0:00:00]} 2. e3 {[%emt 0:00:00]} Nf6 {[%emt 0:00:00]} 3. c4 {[%emt 0:00:00]} e6 {[%emt 0:00:02]} 4. Nc3 {[%emt 0:00:00]} Be7 {[%emt 0:02:52]} 5. b3 {[%emt 0:00:09]} O-O {[%emt 0:00:28]} 6. Bb2 {[%emt 0:00:03]} dxc4 {[%emt 0:01:14]} 7. bxc4 {[%emt 0:02:21]} c5 {[%emt 0:02:09]} 8. Qc2 {[%emt 0:00:11]} b6 {[%emt 0:02:41]} 9. Be2 {[%emt 0:01:58]} Bb7 {[%emt 0:00:10]} 10. a3 {[%emt 0:01:51]} Nc6 {[%emt 0:02:13]} 11. h4 {[%emt 0:01:01]} Qd7 {[%emt 0:19:08]} 12. Ng5 {[%emt 0:04:53]} Rfd8 {[%emt 0:07:58]} 13. Rd1 {[%emt 0:15:30]} Ne5 {[%emt 0:23:45]} 14. d3 {[%emt 0:46:53]} h6 {[%emt 0:13:04]} 15. Nf3 {[%emt 0:01:16]} Nxf3+ {[%emt 0:05:22]} 16. gxf3 {[%emt 0:01:43]} Ne8 {[%emt 0:04:31]} 17. h5 {[%emt 0:05:47]} Bf6 {[%emt 0:06:38]} 18. Rg1 {[%emt 0:00:08]} Qe7 {[%emt 0:00:52]} 19. f4 {[%emt 0:05:11]} Nd6 {[%emt 0:01:51]} 20. Bg4 {[%emt 0:03:01]} Bc6 {[%emt 0:00:51]} 21. Rd2 {[%emt 0:02:46]} b5 {[%emt 0:02:32]} 22. cxb5 {[%emt 0:01:53]} Nxb5 {[%emt 0:00:13]} 23. Nxb5 {[%emt 0:02:21]} Bxb5 {[%emt 0:00:06]} 24. Bxf6 {[%emt 0:01:01]} Qxf6 {[%emt 0:00:01]} 25. Qxc5 {[%emt 0:00:07]} Rd5 {[%emt 0:02:20]} 26. Qb4 {[%emt 0:01:46]} Bxd3 {[%emt 0:00:41]} 27. Bf3 {[%emt 0:00:57]} Rb5 {[%emt 0:00:23]} 28. Qxb5 {[%emt 0:00:30]} Qa1+ {[%emt 0:01:02]} 29. Rd1 {[%emt 0:00:05]} Qc3+ {[%emt 0:00:05]} 30. Rd2 {[%emt 0:00:02]} Bxb5 {[%emt 0:00:30]} 31. Bxa8 {[%emt 0:00:06]} Qc1+ {[%emt 0:00:49]} 32. Rd1 {[%emt 0:00:03]} Qc3+ {[%emt 0:00:53]} 33. Rd2 {[%emt 0:00:04]} Qa1+ {[%emt 0:00:24]} 34. Rd1 {[%emt 0:00:06]} Qxa3 {[%emt 0:00:11]} 35. Rd8+ {[%emt 0:02:03]} Kh7 {[%emt 0:00:01]} 36. Be4+ {[%emt 0:00:08]} f5 {[%emt 0:00:07]} 37. Bf3 {[%emt 0:00:05]} Qb4+ {[%emt 0:01:16]} 38. Rd2 {[%emt 0:00:08]} a5 {[%emt 0:00:32]} 39. Be2 {[%emt 0:01:51]} Be8 {[%emt 0:00:34]} 40. Bd1 {[%emt 0:00:00]} a4 {[%emt 0:00:00]} 0-1

[Event "17th Aeroflot Open-A 2019"]
[Site "Moscow"]
[Date "2019.02.19"]
[Round "1.29"]
[White "Karthik Venkataraman"]
[Black "Zhou, Jianchao"]
[Result "*"]
[ECO "B00"]
[WhiteElo "2494"]
[BlackElo "2615"]
[Annotator "RC"]
[PlyCount "25"]
[EventDate "2019.02.19"]
[EventCountry "RUS"]
[SourceTitle "playchess.com"]
[Source "ChessBase"]
[SourceQuality "1"]
[TimeControl "40/5400+30:1800+30"]

1. e4 {[%emt 0:00:00]} c5 {[%emt 0:00:00]} 2. Nf3 {[%emt 0:00:00]} d6 {[%emt 0:00:00]} 3. d4 {[%emt 0:00:00]} cxd4 {[%emt 0:00:00]} 4. Nxd4 {[%emt 0:00:00]} Nf6 {[%emt 0:00:00]} 5. Nc3 {[%emt 0:00:00]} a6 {[%emt 0:00:00]} 6. Bg5 {[%emt 0:00:00]} Nbd7 {[%emt 0:00:00]} 7. Bc4 {[%emt 0:00:00]} Qb6 {[%emt 0:00:00]} 8. O-O {[%emt 0:00:00]} Qc5 {[%emt 0:00:00]} 9. Bd5 {[%emt 0:00:00]} e6 {[%emt 0:00:00]} 10. Re1 {[%emt 0:03:22]} Ne5 {[%emt 0:00:00]} 11. Bb3 {[%emt 0:09:36]} Be7 {[%emt 0:00:00]} 12. Qd2 {[%emt 0:01:22]} O-O {[%emt 0:06:08]} 13. Rad1 {[%emt 0:00:53]} *